Cogmind - Beta 9.4 @@@ ROGUE MODE // 2020.03.28 @ 14:42:05 // Winter2019/RPGLIKE Player: IAMCRAIG Result: Self-destructed Performance ------------- Evolutions (2) 1000 Regions Visited (5) 1000 Robots Destroyed (77) 385 Value Destroyed (1618) 1618 Prototype IDs (26) 520 Alien Tech Used (0) 0 Bonus (389) 389 TOTAL SCORE: 4912 Bonus ------- High Alert Combat Kills 54 Follower Combat Kills 35 Aligned with FarCom 300 Cogmind --------- Core Integrity 170/950 Matter 232/300 Energy 260/260 System Corruption 0% Temperature Cool (194) Movement Treading (160) Location -8/Materials Parts ------- > --- POWER (2) -------- Light Nuclear Core > --- PROPULSION (3) --- Light Treads Light Treads Light Treads > --- UTILITY (5) ------ Improved Heat Sink Targeting Computer Improved Utility Shielding System Shield > --- WEAPON (3) ------- Plasma Cannon Heavy Assault Rifle Autogun > --- INVENTORY (3) ---- AWS/Autocannon Peak State ------------ > --- POWER ------------ Backup Power I Light Nuclear Core > --- PROPULSION ------- Light Treads Light Treads Light Treads > --- UTILITY ---------- Targeting Computer Core Analyzer Improved Utility Shielding Insulated Plating System Shield > --- WEAPON ----------- AWS/Autocannon > --- INVENTORY -------- Advanced Heat Sink High-capacity Battery Plasma Cannon [Rating: 52] Favorites ----------- Power Light Nuclear Core Engine Backup Power I Power Core Light Nuclear Core Propulsion Light Treads Treads Light Treads Wheel Wheel Utility Targeting Computer Device Improved Heat Sink Storage Large Matter Pod Processor Targeting Computer Hackware System Shield Protection Light Armor Plating Weapon AWS/Autocannon Energy Gun Medium Laser Energy Cannon Plasma Cannon Ballistic Gun Autogun Ballistic Cannon AWS/Autocannon Launcher Grenade Launcher Slashing Weapon Mining Claw Build | -11 -10 -10 -10 -9 -8 ------- Run | Scr Mat Min Exi Min Mat Slots Evolved 9 | 2 2 1 1 1 2 Power 1 | . . 1 . . . Propulsion 2 | 1 . . . . 1 Utility 4 | 1 1 . . 1 1 Weapon 2 | . 1 . 1 . . Parts Attached 56 | 5 23 3 1 8 16 Power 7 | 2 2 1 . . 2 Engine 3 | 2 . 1 . . . Core 4 | . 2 . . . 2 Reactor . | . . . . . . Propulsion 14 | 2 4 . . 4 4 Treads 6 | . . . . 2 4 Leg . | . . . . . . Wheel 8 | 2 4 . . 2 . Hover . | . . . . . . Flight . | . . . . . . Utility 19 | . 6 2 . 4 7 Device 3 | . 2 . . . 1 Storage 3 | . 1 . . . 2 Processor 2 | . . 1 . 1 . Hackware 1 | . . . . . 1 Protection 10 | . 3 1 . 3 3 Artifact . | . . . . . . Weapon 16 | 1 11 . 1 . 3 Energy Gun 2 | . 2 . . . . Energy Cannon 1 | . . . . . 1 Ballistic Gun 7 | 1 4 . . . 2 Ballistic Cannon 1 | . . . 1 . . Launcher 3 | . 3 . . . . Special Weapon . | . . . . . . Impact Weapon . | . . . . . . Slashing Weapon 2 | . 2 . . . . Piercing Weapon . | . . . . . . Special Melee Weapon . | . . . . . . Unidentified Prototypes . | . . . . . . Parts Lost 2 | . . . . . 2 Power 1 | . . . . . 1 Propulsion . | . . . . . . Utility 1 | . . . . . 1 Weapon . | . . . . . . Highest Loss Streak 1 | . . . . . 1 Average Slot Usage (%) 87 | . 91 99 84 81 85 Engine 7 | . 8 6 10 9 7 Core 7 | . 4 11 10 9 7 Treads 9 | . . . . 2 20 Wheel 12 | . 28 23 20 15 . Device 2 | . 4 4 . . 2 Processor 9 | . . 6 10 11 12 Hackware 3 | . . . . . 7 Protection 19 | . 19 23 20 24 15 Energy Cannon 1 | . . . . . 2 Ballistic Gun 1 | . 2 . . . 2 Ballistic Cannon 4 | . . . 7 9 4 Launcher 1 | . 6 . . . . Slashing Weapon 4 | . 9 23 4 . . Naked Turns . | . . . . . . Heaviest Build 71 | 7 14 14 70 71 71 Greatest Support 65 | 26 20 20 20 45 65 Greatest Overweight (x) 3 | . 1 . 3 3 1 Average Overweight (x) 1 | . . . 2 2 . Largest Inventory Capacity 3 | 1 2 3 3 3 3 Average Capacity 2 | . 1 2 3 3 3 Most Carried 3 | 1 2 3 3 3 3 Average Carried 2 | . 1 2 2 2 2 Final Capacity 3 | 1 2 3 3 3 3 Final Carried 3 | 1 2 3 3 3 3 Class Distribution -------------------- 48% | Gunner 45% | Mutant 5% | Scavenger-Gunner Dominant Class ---------------- Mutant | -10/Materials Mutant | -10/Mines Gunner | -10/Exiles Gunner | -9/Mines Gunner | -8/Materials Resources | -11 -10 -10 -10 -9 -8 ----------- Run | Scr Mat Min Exi Min Mat Matter Collected 1141 | 262 445 50 10 80 294 Remotely . | . . . . . . Salvage Created 1368 | 85 244 120 . 77 842 Parts 97 | 1 31 9 . 11 45 Haulers Intercepted 2 | . 2 . . . . Recyclers Shooed 5 | 1 2 . . . 2 Parts Field Recycled . | . . . . . . Retrieved Matter . | . . . . . . Parts Self-Destructed . | . . . . . . Prevented . | . . . . . . Kills | -11 -10 -10 -10 -9 -8 ------- Run | Scr Mat Min Exi Min Mat Combat Hostiles Destroyed 58 | . 12 2 . 24 20 Melee 2 | . . 2 . . . Guns 11 | . 2 . . . 9 Cannons 35 | . . . . 24 11 AOE 10 | . 10 . . . . Classes Destroyed 15 | 1 6 3 . 2 3 Worker 3 | . . 1 . . 2 Builder 2 | . 2 . . . . Tunneler 1 | . . 1 . . . Hauler 2 | . 2 . . . . Recycler 2 | 1 . . . . 1 Mechanic 1 | . . . . . 1 Operator 2 | . 2 . . . . Watcher 6 | . 2 . . . 4 Swarmer 17 | . 9 . . 5 3 Grunt 12 | . 3 . . 1 8 Brawler 2 | . . . . 1 1 Duelist 1 | . . . . . 1 Sentry 8 | . . 2 . . 6 Hunter 1 | . . . . . 1 Assembled 17 | . . . . 17 . Best Kill Streak 14 | 1 9 2 . 14 7 Combat Bots Only 14 | . 7 2 . 14 7 Max Kills in Single Turn 2 | 1 2 1 . 1 1 Gunslinging . | . . . . . . Exploded 2 | . 2 . . . . Melee 1 | . . 1 . . . Uniques/NPCs Destroyed . | . . . . . . Combat | -11 -10 -10 -10 -9 -8 -------- Run | Scr Mat Min Exi Min Mat Damage Taken 3183 | . 424 291 . 461 2007 Core 2217 | . 288 180 . 288 1461 Absorbed by Shields . | . . . . . . Redirected to Core 1766 | . 198 135 . 240 1193 Core Remaining (%) 90 | 100 . . . 81 . Volleys Fired 115 | 4 41 . . . 70 Largest 3 | 1 2 . . . 3 Hottest 126 | 20 90 . . . 126 Shots Fired 271 | 4 61 . . 55 151 Gun 104 | 4 42 . . . 58 Cannon 148 | . . . . 55 93 Launcher 19 | . 19 . . . . Special . | . . . . . . Kinetic 155 | 4 15 . . 55 81 Thermal 97 | . 27 . . . 70 Explosive 19 | . 19 . . . . Electromagnetic . | . . . . . . Robot Hit Streak 36 | 1 8 . . 15 36 Robot Miss Streak 2 | 2 2 . . 1 2 Penetration Max . | . . . . . . Secondary Targets 1 | . 1 . . . . Max Gunslinging Chain 1 | . 1 . . . . Autonomous 79 | . . . . 55 24 Shots Hit Robots 212 | 2 39 12 . 43 116 Core Hits 109 | 2 36 5 . 22 44 Critical Hits 4 | . . . . 1 3 Critical Kills 1 | . . . . . 1 Critical Parts Destroyed 3 | . . . . 1 2 Melee Attacks 50 | . 4 46 . . . Impact . | . . . . . . Slashing 50 | . 4 46 . . . Piercing . | . . . . . . Sneak Attacks 6 | . 3 3 . . . Combat Hostiles . | . . . . . . Follow-up Attacks 4 | . 1 3 . . . Damage Inflicted 9173 | 36 1488 428 . 3354 3867 Guns 994 | 36 350 . . . 608 Cannons 6575 | . . . . 3354 3221 Explosions 938 | . 938 . . . . Melee 628 | . 200 428 . . . Ramming 38 | . . . . . 38 Kinetic 5848 | 36 130 . . 3354 2328 Thermal 1721 | . 220 . . . 1501 Explosive 938 | . 938 . . . . Electromagnetic . | . . . . . . Impact . | . . . . . . Slashing 628 | . 200 428 . . . Piercing . | . . . . . . Highest Corruption 1 | . 1 1 1 1 . Average Corruption 1 | . 1 1 1 1 . Corruption Purged . | . . . . . . Effects 10 | . 3 1 3 3 . Message Errors 4 | . 2 . 2 . . Energy Discharges 3 | . . 1 . 2 . Data Loss (minor) 3 | . 1 . 1 1 . Overload Shots . | . . . . . . Overflow Damage 897 | . 89 93 . 563 152 Projectiles 715 | . . . . 563 152 Explosions 37 | . 37 . . . . Melee 145 | . 52 93 . . . Knockbacks 17 | . . . . 11 6 Impact . | . . . . . . Kinetic 16 | . . . . 11 5 Secondary 1 | . . . . . 1 Self-Inflicted Damage 105 | . 105 . . . . Shots 3 | . 3 . . . . Rammed 4 | . . . . . 4 Targets Rammed 5 | . . . . . 5 Kicked . | . . . . . . Crushed 1 | . . . . . 1 Highest Temperature 339 | . 195 6 . 28 339 Average Temperature 93 | . 89 4 . 14 96 Received Heat Transfer 765 | . 51 114 . 78 522 Effects 4 | . . . . . 4 Interference 3 | . . . . . 3 Damage (minor) 1 | . . . . . 1 Siege Activations . | . . . . . . Robots Corrupted . | . . . . . . Combat Hostiles . | . . . . . . Parts Fried . | . . . . . . Impact Corruptions 1 | . . . . . 1 Robots Melted . | . . . . . . Combat Hostiles . | . . . . . . Parts Melted 5 | . 1 . . . 4 Heat Transferred 3480 | . 630 . . . 2850 Parts Sabotaged . | . . . . . . Parts Stolen . | . . . . . . Parts Stripped . | . . . . . . Power Chain Reactions . | . . . . . . Missiles Intercepted . | . . . . . . Alert | -11 -10 -10 -10 -9 -8 ------- Run | Scr Mat Min Exi Min Mat Peak Influence 765 | 5 765 503 . 125 378 Average Influence 193 | 1 629 364 . 23 61 Maximum Alert Level 3 | . 3 2 . . 1 Low Security (%) 66 | 100 7 . . 100 91 Level 1 16 | . 1 93 . . 8 Level 2 12 | . 67 6 . . . Level 3 4 | . 23 . . . . Level 4 . | . . . . . . Level 5 . | . . . . . . High Security . | . . . . . . Max Security . | . . . . . . Squads Dispatched 7 | . 1 . . 1 5 Investigation 1 | . . . . 1 . Extermination . | . . . . . . Reinforcement 3 | . 1 . . . 2 Assault . | . . . . . . Garrison 3 | . . . . . 3 Intercept . | . . . . . . Construction Impeded . | . . . . . . Haulers Reinforced . | . . . . . . Stealth | -11 -10 -10 -10 -9 -8 --------- Run | Scr Mat Min Exi Min Mat Distress Signals 3 | . . . . . 3 Communications Jammed . | . . . . . . Distress Signals . | . . . . . . Times Spotted 106 | . 22 4 . 29 51 Peak Tracking Total 10 | . 4 2 . 9 10 Tactical Retreats 8 | . 2 . . 1 5 Traps | -11 -10 -10 -10 -9 -8 ------- Run | Scr Mat Min Exi Min Mat Traps Triggered 1 | . 1 . . . . Indirectly . | . . . . . . Trap Hack Attempts . | . . . . . . Triggered . | . . . . . . Disarmed . | . . . . . . Reprogrammed . | . . . . . . Reused . | . . . . . . Traps Extracted . | . . . . . . Installed . | . . . . . . Triggered . | . . . . . . Machines | -11 -10 -10 -10 -9 -8 ---------- Run | Scr Mat Min Exi Min Mat Machines Disabled 17 | . 4 12 . . 1 Max in Single Turn 1 | . 1 1 . . 1 Machines Sabotaged . | . . . . . . Garrisons Compromised . | . . . . . . Overloaded Fab Kills . | . . . . . . Fab Network Shutdowns . | . . . . . . Hacking | -11 -10 -10 -10 -9 -8 --------- Run | Scr Mat Min Exi Min Mat Machines Accessed 18 | . 6 . 1 1 10 Terminals 10 | . 4 . . . 6 Fabricators . | . . . . . . Repair Stations 2 | . 1 . . . 1 Recycling Units 2 | . 1 . . . 1 Scanalyzers 2 | . . . . . 2 Garrison Access . | . . . . . . Total Hacks 65 | . 18 . 1 1 45 Successful 38 | . 12 . 1 1 24 Failed 27 | . 6 . . . 21 Catastrophic 1 | . . . . . 1 Database Lockouts . | . . . . . . Manual 30 | . 10 . 1 . 19 Terminals 45 | . 11 . . . 34 Fabricators . | . . . . . . Repair Stations 9 | . 5 . . . 4 Recycling Units 6 | . 2 . . . 4 Scanalyzers 3 | . . . . . 3 Garrison Access . | . . . . . . Terminal Hacks 15 | . 2 . 1 1 11 Robot Analysis 2 | . . . . . 2 Prototype ID Bank 2 | . . . . . 2 Open Door 1 | . . . . 1 . Branch Access Points 1 | . . . . . 1 Unreport Threat 2 | . . . . . 2 Transport Status 1 | . . . . . 1 Hauler Manifests 1 | . 1 . . . . Registered Components 1 | . . . . . 1 Registered Prototypes 1 | . 1 . . . . Zone Layout 2 | . . . . . 2 EX-Prototype ID Bank 1 | . . . 1 . . Fabricator Hacks . | . . . . . . Repair Station Hacks 5 | . 3 . . . 2 Scan Component 2 | . 1 . . . 1 Repair 2 | . 1 . . . 1 Refit 1 | . 1 . . . . Recycling Unit Hacks 2 | . 1 . . . 1 Report Inventory 2 | . 1 . . . 1 Scanalyzer 3 | . . . . . 3 Insert Component 2 | . . . . . 2 Analyze 1 | . . . . . 1 Garrison Access Hacks . | . . . . . . Unauthorized Hacks 38 | . 16 . . . 22 Terminals 12 | . 5 . . . 7 Botnet 10 | . 4 . . . 6 Operators 2 | . 1 . . . 1 Fabricators . | . . . . . . Repair Stations . | . . . . . . Recycling Units 1 | . 1 . . . . Reject 1 | . 1 . . . . Scanalyzers . | . . . . . . Garrison Access . | . . . . . . Data Cores Recovered 1 | . 1 . . . . Used . | . . . . . . Hacking Detections 14 | . 5 . . . 9 Full Trace Events . | . . . . . . Feedback Events . | . . . . . . Feedback Blocked . | . . . . . . Robot Schematics Acquired . | . . . . . . Robots Built . | . . . . . . Matter . | . . . . . . Time . | . . . . . . Total Robot Build Rating . | . . . . . . Part Schematics Acquired 1 | . . . . . 1 Parts Built . | . . . . . . Matter . | . . . . . . Time . | . . . . . . Total Part Build Rating . | . . . . . . Parts Repaired 2 | . 1 . . . 1 Time 76 | . 38 . . . 38 Parts Recycled . | . . . . . . Recycled Matter . | . . . . . . Retrieved Matter . | . . . . . . Retrieved Components . | . . . . . . Parts Scanalyzed 1 | . . . . . 1 Part Schematics Acquired 1 | . . . . . 1 Parts Damaged . | . . . . . . Bothacking | -11 -10 -10 -10 -9 -8 ------------ Run | Scr Mat Min Exi Min Mat Used RIF Installer . | . . . . . . Robots Hacked . | . . . . . . Non-combat . | . . . . . . Combat . | . . . . . . Robot Hacks Applied . | . . . . . . Relay Couplers Released . | . . . . . . Robots Rewired . | . . . . . . Allies Hacked . | . . . . . . Hacks Repelled . | . . . . . . Allies | -11 -10 -10 -10 -9 -8 -------- Run | Scr Mat Min Exi Min Mat Total Allies 1 | . . 1 . . . Largest Group 1 | . . 1 . . . Highest-Rated Group 31 | . . 31 . . . Highest-Rated Ally 31 | . . 31 . . . Total Orders . | . . . . . . Ally Attacks 5 | . . 5 . . . Total Damage 85 | . . 85 . . . Kills 1 | . . 1 . . . Allies Corrupted . | . . . . . . Allies Melted . | . . . . . . Intel | -11 -10 -10 -10 -9 -8 ------- Run | Scr Mat Min Exi Min Mat Robot Analysis Total 2 | . . . . . 2 Derelict Logs Recovered 3 | . . 1 . 2 . Drone Launches . | . . . . . . Drone Recoveries . | . . . . . . Exploration | -11 -10 -10 -10 -9 -8 ------------- Run | Scr Mat Min Exi Min Mat Turns Passed 4865 | 55 782 577 480 916 2055 Spaces Moved 3332 | 49 693 526 379 707 978 Core 6 | 6 . . . . . Treads 1057 | . . . . 79 978 Legs . | . . . . . . Wheels 2269 | 43 693 526 379 628 . Hover . | . . . . . . Flight . | . . . . . . Fastest Speed 50 | 50 80 80 80 110 160 Average Speed 118 | 77 82 80 100 117 173 Slowest Speed 180 | 100 90 80 110 180 180 Overloaded Moves . | . . . . . . Propulsion Burnouts . | . . . . . . Robots Hopped . | . . . . . . Cave-ins Triggered 1 | . . . . . 1 Exploration Rate (%) 66 | 2 89 80 69 93 66 Regions Visited 5 Branch Regions 3 Pre-discovered Areas 1 | . . . . 1 . Known Exits Taken . | . . . . . . Unknown Exits Taken 5 | 1 1 1 1 1 . Scrap Searched 3 | . . 1 . 2 . Spaces Dug 15 | . 10 3 . . 2 Terrain Destroyed 179 | . 150 3 . 15 11 Melee 3 | . . 3 . . . Projectile 26 | . . . . 15 11 AOE 150 | . 150 . . . . Actions | -11 -10 -10 -10 -9 -8 --------- Run | Scr Mat Min Exi Min Mat Total 3989 | 59 835 604 480 792 1219 Wait 315 | . 50 18 93 59 95 Move 3327 | 48 692 525 378 706 978 Hop . | . . . . . . Pick Up 15 | 1 2 3 3 4 2 Fast Attach 31 | 5 12 1 1 3 9 Attach 6 | . 2 1 . 2 1 Detach 4 | . 3 . . . 1 Swap 19 | . 9 1 . 3 6 Drop 45 | 1 15 3 5 8 13 Fire 115 | 4 41 . . . 70 Melee 40 | . 3 37 . . . Ram . | . . . . . . Kick . | . . . . . . Crush 5 | . . . . . 5 Escape Stasis . | . . . . . . Rewire . | . . . . . . Trap . | . . . . . . Miscellaneous 67 | . 6 15 . 7 39 Route ------- -11/Scrapyard -10/Materials (discovered 5 exits: [*Mat x3] / [*Min x2]) -10/Mines (discovered 2 exits: [*Mat] / *Exi) -10/Exiles -9/Mines (discovered 2 exits: *Mat x2) -8/Materials (discovered 2 exits: *Fac x2) History --------- Turn | Location | Event 2 | -11/Scrapyard | Upgraded with Propulsion slot (x1) 2 | -11/Scrapyard | Upgraded with Utility slot (x1) 20 | -11/Scrapyard | Discovered new exit (range 15) 56 | -11/Scrapyard | Entered Materials 84 | -10/Materials | Discovered new exit (range 6) 133 | -10/Materials | Discovered new exit (range 15) 185 | -10/Materials | Destroyed 7 combat bots 307 | -10/Materials | Build established: Mutant 388 | -10/Materials | Reached level 2 390 | -10/Materials | Upgraded with Utility slot (x1) 390 | -10/Materials | Upgraded with Weapon slot (x1) 435 | -10/Materials | Discovered new exit (range 11) 574 | -10/Materials | Discovered new exit (range 9) 575 | -10/Materials | Discovered new exit (range 13) 745 | -10/Materials | Repaired Lgt. Nuclear Core 838 | -10/Materials | Entered Mines 864 | -10/Mines | Discovered new exit (range 11) 989 | -10/Mines | Learned location of 1 exit from Materials 1068 | -10/Mines | Upgraded with Power slot (x1) 1089 | -10/Mines | Received a Mining Laser from a helpful Derelict 1129 | -10/Mines | Deemed a non-threat by the Exiles lab entrance 1130 | -10/Mines | Discovered new exit (range 5) 1201 | -10/Mines | Reached level 3 1415 | -10/Mines | Entered Exiles 1435 | -10/Exiles | Met 8R-AWN 1449 | -10/Exiles | Met EX-HEX 1476 | -10/Exiles | Met EX-BIN 1484 | -10/Exiles | Aligned with FarCom system 1485 | -10/Exiles | Given EX-Vault access code 1506 | -10/Exiles | Opened EX-Vault 1510 | -10/Exiles | Upgraded with Weapon slot (x1) 1512 | -10/Exiles | Found AWS/Autocannon 1520 | -10/Exiles | Found Superbattery 1698 | -10/Exiles | Warned to stay clear of 0b10 Research branches 1785 | -10/Exiles | Met EX-DEC 1810 | -10/Exiles | Build established: Gunner 1878 | -10/Exiles | Discovered new exit (range 11) 1895 | -10/Exiles | Left Exiles lab with AWS/Autocannon 1895 | -10/Exiles | Entered Mines 1897 | -9/Mines | Reached level 4 1899 | -9/Mines | Upgraded with Utility slot (x1) 1902 | -9/Mines | Received a Rocket Launcher from a helpful Derelict 2002 | -9/Mines | Learned location of Storage (-9) 2004 | -9/Mines | Discovered new exit (range 9) 2216 | -9/Mines | Assembled infested the area 2382 | -9/Mines | Discovered new exit (range 11) 2410 | -9/Mines | Destroyed 14 combat bots 2550 | -9/Mines | Met a Derelict shopkeep closing up shop 2708 | -9/Mines | Learned location of 1 exit from Materials 2712 | -9/Mines | Learned 2 Materials zone layouts 2811 | -9/Mines | Entered Materials 2812 | -8/Materials | Identified exit to Factory 2813 | -8/Materials | Reached level 5 2815 | -8/Materials | Upgraded with Utility slot (x1) 3547 | -8/Materials | Reached level 6 3582 | -8/Materials | Upgraded with Propulsion slot (x1) 4090 | -8/Materials | Crushed by falling debris 4090 | -8/Materials | Core integrity fell below 50% 4365 | -8/Materials | Build established: Mutant 4464 | -8/Materials | Repaired Lgt. Nuclear Core 4604 | -8/Materials | Garrison activated, responded to threat 4654 | -8/Materials | Destroyed 7 combat bots 4749 | -8/Materials | Reached level 7 4865 | -8/Materials | Core integrity fell below 20% 4866 | -8/Materials | Self-destructed Last Messages --------------- 04772_ G-47 Trooper destroyed. 04774_ Overheating: Targeting Computer damaged (-3). 04775_ Acquired 2 matter. 04785_ Protomatter-36 decays. 04785_ Used Protomatter to restore core integrity (+153, depleted) 04799_ Dropped Lgt. Treads. 04805_ Acquired 30 matter. 04810_ Dropped Lgt. Treads. 04813_ Acquired 10 matter. 04824_ Acquired Hvy. Assault Rifle. 04830_ Destroyed Particle Gun. 04833_ Destroyed Lgt. Nuclear Core. 04838_ G-47 Trooper destroyed. 04852_ L-31 Rogue destroyed. 04858_ Y-45 Defender destroyed. 04862_ Overheating: System interference. 04862_ Plasma Cannon temporarily disabled. 04862_ Hvy. Assault Rifle temporarily disabled. 04862_ Plasma Cannon temporarily disabled. 04864_ Insulated Plating destroyed. Map ----- +----------------------------------------------------+ | ???????????????????????????????????????? | | ???????????????????????????????????????? | | ???????????????????????????????????????? | | ???????????????????????????????????????? | | ???????????????????????????????????????? | | ???????????????????????????????????????? | | ???????????????w?????o?????????????????? | | ???????????????????????????????????????? | | ???????????????????????????????????????? | | ??????????????? ?????????????????????? | | ??????????????? ![[???????????????????? | | ??????????????? ![????????????????????? | | ??????????????? [[????????????????????? | | ??????????????? ??????? ???????????? | | ??????????????? o ??????? ???????????? | | ??????????????# gg#??????? ???????????? | | ??????????????#= #??????# ???????????? | | ??????????????#ggg#??????# ???????????? | | ??????????????# #??????# ???????????? | | ??????????????# !%#????!?# ########### | | ??????????????# #??????# | | ??????????????# #??????# | | ??????!???????+=* +??????# | | ??????????????#%[ #??????# ######!###### | | ??????????????#!! #??????# ######/###### | | ?????????????##@ ##?????# ## %! ! | | ??????######## #?????# ## | | ??????# #######=## | | ??????# < = == [%=*%%+ | | ??????# !=! !% #### ##### | | ??????# %% # #?## #???# | | ??????#% !!! #######??#=#???############ | | ??????#% %= #???????##=#??????????# | | ??????##%%%%##?####### #??????????# | | ???????######??# #*#?????????## | | ???????????????# """ #=#?????????# " | | ???????????????# """ # #?????????## S" | | ???????????????# """ # #??????????# "" | | ???????????????# # #??????????##### | | ???????????????# # #??????????????? | | ???????????????####+###/####???????????? | | ??????????????????# # #???????????? | | ??????????????????# # #???????????? | | ??????????????????# # #???????????? | | ??????????????????# # #????????#### | | ??????????????????# #+####### | | ??????????????????# % | | ??????????????????########### | | ?????????????????????????????? ######## | | ???????????????????????????????????????? | +----------------------------------------------------+ Best States ------------- Heat Dissipation 45 Energy Generation 18 Energy Capacity 660 Matter Stores 300 Matter Capacity 500 Sight Range 16 Robot Scan Range 10 Terrain Scan Density 10 Armor Coverage 150 Resistance: EM 15 Propulsion Shielding 33 Utility Shielding 66 Weapon Shielding 33 Evasion (%) 44 Targeting Accuracy 5 Core Analysis 6 Recoil Reduction 3 Defensive Hacking 10 Item Schematics ----------------- Propulsion Shielding | -8/Materials | Scanalyzed Robot Schematics ------------------ None Fabricated ------------ Nothing Alien Tech Used ----------------- None Achievements -------------- Exterminator Challenges ------------ None RPGLIKE | -11 -10 -10 -10 -9 -8 --------- Run | Scr Mat Min Exi Min Mat Levels Raised 6 | . 1 1 . 1 3 XP Earned 12922 | 3000 1935 1777 350 1300 4560 XP Spent 10260 | 1250 1800 1250 1700 1500 2760 Upgrades 25 | 3 3 2 3 8 6 Power Slot 1 | . . 1 . . . Propulsion Slot 2 | 1 . . . . 1 Utility Slot 4 | 1 1 . . 1 1 Weapon Slot 2 | . 1 . 1 . . Core Integrity 7 | . . . . 6 1 Heat Dissipation 1 | . . . . . 1 Energy Storage 2 | . . . . . 2 Mass Support 1 | . . . . 1 . Inventory Capacity 3 | 1 1 1 . . . Ranged Accuracy 2 | . . . 2 . . Protomatter Created 468 | . 44 58 . 36 330 Integrity Restored 1437 | . 123 327 . 135 852 Core 1437 | . 123 327 . 135 852 Protomatter Decayed 71 | . 3 . . 32 36 Game ------ Seed MatterHeavyTendrils Manual? 0 Play Time 00:51:20 Cumulative 58.2 hours Start 2020.03.28 @ 03:14:52 End 2020.03.28 @ 14:42:05 Sessions 2 Manual Loads 0 Difficulty Rogue Special Mode Winter2019/RPGLIKE Game No. 15 Rogue 15 Adventurer 0 Explorer 0 Win Type - Total 1 Types 1/0/0/0/0/0/0 Lore% 41 Gallery% 50 Achievement% 55 Wizard Run 0 Options --------- ASCII 1 Keyboard 1 Movement Numpad Keybinds 0 Fullscreen 1 Font 16/SmallcapsGlow Map View 75x55 Tactical HUD 1 Map Filters NONE Filters NONE Steam 1 RUN: fcdb4eca-8ee7-46a7-87c1-b13bcb04c11d